[Event "RUDAR XXII-IM 2024"]
[Site "Pozarevac"]
[Date "2024.02.13"]
[Round "7.1"]
[White "Potluri Saye Srreezza"]
[Black "Ilincic, Zlatko"]
[Result "0-1"]
[ECO "E32"]
[WhiteElo "1983"]
[BlackElo "2291"]
[Annotator "TA"]
[PlyCount "60"]
[EventDate "2024.02.12"]
[EventType "tourn"]
[EventCountry "SRB"]
[SourceTitle "playchess.com"]
[Source "ChessBase"]
[SourceQuality "1"]
[TimeControl "5400+30"]

{[%evp 9,60,11,21,18,18,8,29,23,14,0,0,-43,-54,-54,-47,-41,-54,-108,-72,-132,-114,-164,-158,-187,-164,-231,-229,-237,-225,-234,-235,-229,-215,-337,-358,-593,-577,-583,-577,-580,-587,-575,-558,-567,-547,-538,-509,-514,-500,-692,-679,-652,-623]} 1. d4 {[%emt 0:06:32]} Nf6 {[%emt 0:00:16]} 2. c4 {[%emt 0:00:05]} e6 {[%emt 0:00:24]} 3. Nc3 {[%emt 0:00:04]} Bb4 {[%emt 0:00:11]} 4. Qc2 {[%emt 0:00:06]} d6 {[%emt 0:00:16]} 5. Bd2 {[%emt 0:01:51]} c5 {[%emt 0:00:21]} 6. dxc5 {[%emt 0:01:00]} dxc5 {[%emt 0:00:17]} 7. e3 {[%emt 0:04:04]} O-O {[%emt 0:00:31]} 8. Be2 {[%emt 0:01:10] White has an edge.} Nc6 {[%emt 0:00:26]} 9. O-O-O {[%emt 0:01:17]} Qe7 {[%emt 0:00:33]} 10. g4 {[%emt 0:00:12]} Bxc3 {[%emt 0:00:59]} 11. Bxc3 {[%emt 0:00:08]} Nb4 {[%emt 0:01:21]} 12. Bxb4 {[%emt 0:22:27]} cxb4 {[%emt 0:06:09]} 13. f4 {[%emt 0:01:07]} (13. g5 $15 Nd7 14. Kb1) 13... Qc5 {[%emt 0:01:59]} 14. Kb1 {[%emt 0:09:45]} ({Better is} 14. g5 Qxe3+ 15. Qd2 Qxd2+ 16. Kxd2 Rd8+ 17. Ke3 Rxd1 18. Bxd1) 14... Qxe3 $17 {[%emt 0:00:57][%cal Oe6e5]} 15. Rd3 {[%emt 0:02:28]} (15. g5 $17 Nd7 16. Qd2 (16. Bd3 Nc5 $19) 16... Qxd2 (16... Qe4+ $2 17. Ka1 $19) 17. Rxd2) 15... Qxf4 $19 {[%emt 0:00:41]} 16. Nh3 {[%emt 0:03:11]} Qc7 {[%emt 0:01:47]} 17. Ng5 {[%emt 0:01:32]} (17. Rf1 $142) 17... h6 {[%emt 0:10:07]} 18. Nh3 {[%emt 0:03:37]} e5 {[%emt 0:02:46]} 19. Rg3 {[%emt 0:03:25]} e4 {[%emt 0:05:05]} 20. Rf1 {[%emt 0:01:33]} Qe5 {[%emt 0:00:36]} 21. g5 {[%emt 0:01:23]} (21. Qc1 {was called for.}) 21... Bxh3 {[%emt 0:01:19]} 22. Rxf6 {[%emt 0:09:53]} (22. Rxh3 {was necessary.} hxg5 (22... Qxg5 $2 23. Rg3 $19) 23. Rg3) 22... gxf6 {[%emt 0:05:42] Black is clearly winning.} 23. gxf6+ {[%emt 0:25:10]} Kh7 {[%emt 0:00:15]} 24. Rxh3 {[%emt 0:00:00]} Rg8 {[%emt 0:00:13] [#] Strongly threatening ...Rg1+.} 25. a3 {[%emt 0:00:00]} Rg1+ {[%emt 0:03:25]} 26. Ka2 {[%emt 0:00:00]} bxa3 {[%emt 0:00:39]} (26... Qxf6 27. Qxe4+ Qg6 28. Qe3 $17) 27. Rxa3 {[%emt 0:00:00]} Rg6 {[%emt 0:01:52]} ({Not} 27... Qxh2 28. Qxe4+ Kg8 29. Bd3 $17) 28. Re3 {[%emt 0:00:00]} Re8 {[%emt 0:00:51]} 29. Bf3 {[%emt 0:00:00]} Qa5+ {[%emt 0:00:42]} ({Less strong is} 29... Qxf6 30. Bxe4 Kg7 31. Rf3 $11) 30. Ra3 {[%emt 0:00:00]} Qe1 {[%emt 0:00:15] White did not feel at home in the position after the opening.   Weighted Error Value: White=0.47/Black=0.06 (flawless) .  Mistake:       	White=6     	---        Inaccurate:     	White=2     	Black=1      OK:         	White=7     	Black=13     Best:        	White=2     	Black=2} 0-1

[Event "RUDAR XXII-IM 2024"]
[Site "Pozarevac"]
[Date "2024.02.13"]
[Round "7.2"]
[White "Ninov, Nikolai"]
[Black "Mesic, Ismet"]
[Result "0-1"]
[ECO "B76"]
[WhiteElo "2413"]
[BlackElo "2232"]
[Annotator "RC"]
[PlyCount "106"]
[EventDate "2024.02.12"]
[EventType "tourn"]
[EventCountry "SRB"]
[SourceTitle "playchess.com"]
[Source "ChessBase"]
[SourceQuality "1"]
[TimeControl "5400+30"]

1. e4 {[%emt 0:00:07]} c5 {[%emt 0:00:07]} 2. Nf3 {[%emt 0:00:18]} d6 {[%emt 0:00:09]} 3. d4 {[%emt 0:00:34]} cxd4 {[%emt 0:00:04]} 4. Nxd4 {[%emt 0:00:13]} Nf6 {[%emt 0:00:07]} 5. Nc3 {[%emt 0:00:21]} g6 {[%emt 0:00:08]} 6. Be3 {[%emt 0:00:24]} Bg7 {[%emt 0:00:04]} 7. f3 {[%emt 0:00:14]} Nc6 {[%emt 0:00:11]} 8. Qd2 {[%emt 0:00:13]} O-O {[%emt 0:00:11]} 9. O-O-O {[%emt 0:02:43]} d5 {[%emt 0:00:15]} 10. exd5 {[%emt 0:00:15]} Nxd5 {[%emt 0:00:05]} 11. Nxc6 {[%emt 0:00:15]} bxc6 {[%emt 0:00:17]} 12. Bd4 {[%emt 0:00:10]} e5 {[%emt 0:00:20]} 13. Bc5 {[%emt 0:00:15]} Re8 {[%emt 0:00:05]} 14. Ne4 {[%emt 0:05:29]} Qc7 {[%emt 0:01:33]} 15. Bc4 {[%emt 0:03:46]} Be6 {[%emt 0:00:17]} 16. h4 {[%emt 0:00:44]} h6 {[%emt 0:00:13]} 17. g4 {[%emt 0:01:15]} f5 {[%emt 0:12:31]} 18. gxf5 {[%emt 0:42:25]} gxf5 {[%emt 0:00:12]} 19. Bd6 {[%emt 0:03:17]} Qd7 {[%emt 0:42:55]} 20. Rhg1 {[%emt 0:05:54]} Kh7 {[%emt 0:05:33]} 21. Qg2 {[%emt 0:18:29]} fxe4 {[%emt 0:01:48]} 22. Bxd5 {[%emt 0:00:36]} cxd5 {[%emt 0:01:40]} 23. fxe4 {[%emt 0:00:15]} Kh8 {[%emt 0:05:06]} 24. Qg3 {[%emt 0:06:38]} Bg8 {[%emt 0:04:09]} 25. Rd2 {[%emt 0:00:26]} Bf6 {[%emt 0:05:18]} 26. Qg6 {[%emt 0:02:40]} Qg7 {[%emt 0:00:44]} 27. Qxg7+ {[%emt 0:02:16]} Bxg7 {[%emt 0:00:00]} 28. Rdg2 {[%emt 0:00:02]} Rad8 {[%emt 0:02:04]} 29. Bc5 {[%emt 0:02:23]} Rd7 {[%emt 0:00:33]} 30. exd5 {[%emt 0:00:22]} Bxd5 {[%emt 0:01:21]} 31. Rg3 {[%emt 0:00:22]} Rc8 {[%emt 0:03:42]} 32. Bb4 {[%emt 0:00:51]} Kh7 {[%emt 0:03:43]} 33. Bc3 {[%emt 0:00:21]} Rc4 {[%emt 0:00:32]} 34. Rd1 {[%emt 0:01:10]} Bc6 {[%emt 0:02:05]} 35. Rxd7 {[%emt 0:00:58]} Bxd7 {[%emt 0:00:00]} 36. Re3 {[%emt 0:00:05]} h5 {[%emt 0:00:07]} 37. Kd1 {[%emt 0:00:24]} Rxh4 {[%emt 0:00:19]} 38. Bxe5 {[%emt 0:00:10]} Bg4+ {[%emt 0:00:19]} 39. Ke1 {[%emt 0:00:23]} Rh1+ {[%emt 0:00:10]} 40. Kf2 {[%emt 0:00:11]} Bxe5 {[%emt 0:01:19]} 41. Rxe5 {[%emt 0:00:08]} Rh2+ {[%emt 0:00:07]} 42. Kg3 {[%emt 0:00:09]} Rxc2 {[%emt 0:00:04]} 43. Re7+ {[%emt 0:00:31]} Kg6 {[%emt 0:00:07]} 44. Rxa7 {[%emt 0:00:07]} Rxb2 {[%emt 0:00:08]} 45. Ra5 {[%emt 0:00:12]} Kf6 {[%emt 0:01:23]} 46. Ra8 {[%emt 0:02:09]} Ke5 {[%emt 0:01:04]} 47. Ra5+ {[%emt 0:00:14]} Kd4 {[%emt 0:00:19]} 48. Ra8 {[%emt 0:00:23]} Kc5 {[%emt 0:01:01]} 49. Ra7 {[%emt 0:00:49]} Kb6 {[%emt 0:00:27]} 50. Ra3 {[%emt 0:00:15]} Rb5 {[%emt 0:00:18]} 51. Rd3 {[%emt 0:00:41]} Ra5 {[%emt 0:00:05]} 52. a3 {[%emt 0:00:11]} Kb5 {[%emt 0:00:05]} 53. Kh4 {[%emt 0:00:27]} Ka4 {[%emt 0:00:06]} 0-1

[Event "RUDAR XXII-IM 2024"]
[Site "Pozarevac"]
[Date "2024.02.13"]
[Round "7.3"]
[White "Bryakin, Mikhail"]
[Black "Sri Sai Baswanth P"]
[Result "1-0"]
[ECO "D02"]
[WhiteElo "2494"]
[BlackElo "2096"]
[Annotator "TA"]
[PlyCount "151"]
[EventDate "2024.02.12"]
[EventType "tourn"]
[EventCountry "SRB"]
[SourceTitle "playchess.com"]
[Source "ChessBase"]
[SourceQuality "1"]
[TimeControl "5400+30"]

{[%evp 34,151,151,113,140,134,161,145,162,155,184,160,195,122,130,132,137,136,132,134,154,114,145,128,134,135,130,103,98,103,104,109,104,99,95,83,75,75,75,77,79,25,33,34,29,30,24,8,8,8,8,8,8,8,8,8,8,8,8,8,8,8,8,8,12,12,19,12,12,12,19,19,19,19,19,19,23,23,23,19,19,19,19,19,19,19,19,19,19,19,19,19,19,19,19,19,19,19,19,19,29965,29966,29966,29968,29968,29969,29969,29968,29968,29969,29969,29969,29969,29968,29970,29970,29970,29970,29937,10849]} 1. d4 {[%emt 0:07:48]} Nf6 {[%emt 0:00:11]} 2. Bf4 {[%emt 0:00:09]} d5 {[%emt 0:00:12]} 3. e3 {[%emt 0:00:15]} e6 {[%emt 0:00:17]} 4. Nf3 {[%emt 0:01:09]} c5 {[%emt 0:00:15]} 5. c3 {[%emt 0:00:42]} Nc6 {[%emt 0:00:10]} 6. Nbd2 {[%emt 0:00:21]} Nh5 {[%emt 0:01:20]} 7. Be5 {[%emt 0:02:22]} f6 {[%emt 0:00:24]} 8. Bg3 {[%emt 0:00:12]} g6 {[%emt 0:00:37]} 9. Be2 {[%emt 0:00:17]} cxd4 {[%emt 0:02:51]} 10. cxd4 {[%emt 0:01:01]} Bg7 {[%emt 0:00:16]} 11. Bh4 {[%emt 0:00:56]} Bf8 {[%emt 0:03:56]} 12. Ne5 {[%emt 0:04:15]} Ng7 {[%emt 0:14:16]} 13. Bb5 {[%emt 0:01:08]} Bd7 {[%emt 0:20:19]} 14. Nxd7 {[%emt 0:01:33]} Qxd7 {[%emt 0:00:22]} 15. Bxf6 {[%emt 0:00:33]} Bd6 {[%emt 0:00:19]} 16. Bxg7 {[%emt 0:03:47]} Qxg7 {[%emt 0:00:09]} 17. Rc1 {[%emt 0:00:32]} Rc8 {[%emt 0:01:56]} 18. Qf3 {[%emt 0:01:43]} Ke7 {[%emt 0:51:40]} 19. Bxc6 {[%emt 0:02:32]} bxc6 {[%emt 0:00:00]} 20. Qe2 {[%emt 0:00:29]} Rc7 {[%emt 0:00:00]} 21. O-O {[%emt 0:00:41]} Rb8 {[%emt 0:00:00]} 22. Rc2 {[%emt 0:01:41]} c5 {[%emt 0:00:00]} 23. dxc5 {[%emt 0:00:20]} (23. Rfc1 $18) 23... Rxc5 $16 {[%emt 0:00:00]} 24. Rxc5 {[%emt 0:00:13]} Bxc5 {[%emt 0:00:00]} 25. Nb3 {[%emt 0:00:11]} Bb6 {[%emt 0:00:00]} 26. Rc1 {[%emt 0:00:22]} Qe5 {[%emt 0:00:00]} 27. Rc2 {[%emt 0:02:07]} h5 {[%emt 0:00:00]} 28. Qd3 {[%emt 0:00:32]} Kf7 {[%emt 0:00:00]} 29. Nd2 {[%emt 0:00:38]} Qf5 {[%emt 0:00:00]} 30. Nf3 {[%emt 0:01:23]} Qxd3 {[%emt 0:00:00]} 31. Ne5+ {[%emt 0:00:06]} Ke7 {[%emt 0:00:00]} 32. Nxd3 {[%emt 0:00:07]} Kd6 {[%emt 0:00:00]} 33. h4 {[%emt 0:01:13]} e5 {[%emt 0:00:00]} 34. Kf1 {[%emt 0:00:08]} Bd8 {[%emt 0:00:00]} 35. g3 {[%emt 0:00:06]} g5 {[%emt 0:00:00]} 36. hxg5 {[%emt 0:00:17]} Bxg5 {[%emt 0:00:00]} 37. Ke2 {[%emt 0:01:21]} ({White should try} 37. f4 $16 Bf6 38. fxe5+ Bxe5 39. Rg2) 37... e4 $1 $11 {[%emt 0:00:00]} 38. Nc5 {[%emt 0:01:30]} h4 {[%emt 0:00:00]} 39. gxh4 {[%emt 0:00:08]} Bxh4 {[%emt 0:00:00]} 40. Na4 {[%emt 0:01:09]} Rf8 {[%emt 0:00:00]} 41. Kf1 {[%emt 0:00:08]} d4 {[%emt 0:00:00]} 42. exd4 {[%emt 0:05:53]} e3 {[%emt 0:00:00]} 43. Nc3 {[%emt 0:00:15]} exf2 {[%emt 0:00:00]} 44. Ne2 {[%emt 0:14:24]} Rf3 {[%emt 0:00:00]} 45. Rc3 {[%emt 0:00:17]} Rxc3 {[%emt 0:00:00]} 46. Nxc3 {[%emt 0:00:05]} a6 {[%emt 0:00:00]} 47. Ke2 {[%emt 0:00:38]} Kc6 {[%emt 0:00:00]} 48. Nd1 {[%emt 0:04:22]} (48. b4 {keeps more tension.} Bf6 49. d5+ Kd6 50. Ne4+) 48... Bf6 {[%emt 0:04:04]} (48... Kd5 {is interesting.} 49. Ne3+ Ke4 50. d5 Bg3) 49. Nxf2 {[%emt 0:01:12]} Bxd4 {[%emt 0:00:01]} 50. Nd1 {[%emt 0:00:11]} Kd5 {[%emt 0:02:01]} 51. Kd3 {[%emt 0:00:08]} a5 {[%emt 0:00:38]} 52. Nc3+ {[%emt 0:01:28]} Kc5 {[%emt 0:02:37]} 53. Kc2 {[%emt 0:00:55]} Bh8 {[%emt 0:04:14]} 54. Kb3 {[%emt 0:00:17]} Kb6 {[%emt 0:01:30]} 55. Kc4 {[%emt 0:01:09]} Bg7 {[%emt 0:00:27]} 56. Kd5 {[%emt 0:03:03]} Bh8 {[%emt 0:00:49]} 57. a4 {[%emt 0:00:26]} Bg7 {[%emt 0:00:25]} 58. Nd1 {[%emt 0:00:23]} Bh6 {[%emt 0:01:07]} 59. Nf2 {[%emt 0:00:18]} Bg7 {[%emt 0:00:19]} 60. Nd3 {[%emt 0:00:36]} Bf6 {[%emt 0:00:49]} 61. b3 {[%emt 0:00:17]} Be7 {[%emt 0:00:32]} 62. Ne5 {[%emt 0:00:09]} Bb4 {[%emt 0:00:24]} 63. Nf3 {[%emt 0:00:39]} Bc3 {[%emt 0:00:11]} 64. Ng5 {[%emt 0:00:06]} Be1 {[%emt 0:00:21]} 65. Ne4 {[%emt 0:00:02]} Bb4 {[%emt 0:00:19]} 66. Nd6 {[%emt 0:00:12]} Be1 $2 {[%emt 0:00:31][%mdl 8192]} (66... Kc7 $11 67. Ne4 Kb6) 67. Nc4+ {[%emt 0:00:08]} Ka6 {[%emt 0:00:41]} 68. Kc6 {[%emt 0:00:05]} Bc3 {[%emt 0:00:23]} 69. Nd6 {[%emt 0:00:05]} Be1 {[%emt 0:00:25]} 70. Nb5 {[%emt 0:00:05]} Bg3 {[%emt 0:00:18]} 71. Nc7+ {[%emt 0:00:21]} Ka7 {[%emt 0:00:13]} 72. Ne6 {[%emt 0:00:05]} Ka6 {[%emt 0:00:31]} 73. Nc5+ {[%emt 0:00:05]} Ka7 {[%emt 0:00:11]} 74. Kb5 {[%emt 0:00:05]} Be1 {[%emt 0:00:27]} 75. Ne6 {[%emt 0:00:12]} Bc3 {[%emt 0:00:19]} 76. Nd8 {[%emt 0:00:11]} (76. Nc7 $142 Be1 77. Nd5 Bh4 78. Kxa5 Bg3 79. Ne7 Bh4 80. Nc6+ Kb7 81. Kb5) 1-0

[Event "RUDAR XXII-IM 2024"]
[Site "Pozarevac"]
[Date "2024.02.13"]
[Round "7.4"]
[White "Spasic, Petar"]
[Black "Karamsetty, Jeevan"]
[Result "1-0"]
[ECO "A49"]
[WhiteElo "2343"]
[BlackElo "2211"]
[Annotator "RC"]
[PlyCount "129"]
[EventDate "2024.02.12"]
[EventType "tourn"]
[EventCountry "SRB"]
[SourceTitle "playchess.com"]
[Source "ChessBase"]
[SourceQuality "1"]
[TimeControl "5400+30"]

1. d4 {[%emt 0:15:44]} g6 {[%emt 0:00:13]} 2. Nf3 {[%emt 0:00:11]} Bg7 {[%emt 0:00:12]} 3. g3 {[%emt 0:00:22]} d6 {[%emt 0:00:45]} 4. Bg2 {[%emt 0:00:20]} Nf6 {[%emt 0:00:18]} 5. O-O {[%emt 0:01:05]} O-O {[%emt 0:00:11]} 6. Re1 {[%emt 0:00:10]} Nbd7 {[%emt 0:01:16]} 7. c4 {[%emt 0:01:54]} e5 {[%emt 0:00:40]} 8. e3 {[%emt 0:00:40]} Re8 {[%emt 0:00:56]} 9. a4 {[%emt 0:00:08]} a5 {[%emt 0:01:33]} 10. Nc3 {[%emt 0:00:17]} Rb8 {[%emt 0:03:42]} 11. b3 {[%emt 0:02:13]} b6 {[%emt 0:00:33]} 12. Ba3 {[%emt 0:00:40]} Bb7 {[%emt 0:00:22]} 13. Qc2 {[%emt 0:00:11]} Nf8 {[%emt 0:24:15]} 14. dxe5 {[%emt 0:04:10]} Bxf3 {[%emt 0:03:40]} 15. Bxf3 {[%emt 0:00:13]} Rxe5 {[%emt 0:00:13]} 16. Nb5 {[%emt 0:01:24]} Qc8 {[%emt 0:25:55]} 17. Nd4 {[%emt 0:01:01]} Re8 {[%emt 0:01:27]} 18. Nc6 {[%emt 0:03:19]} Ra8 {[%emt 0:00:14]} 19. Rad1 {[%emt 0:01:09]} Ne6 {[%emt 0:05:02]} 20. h4 {[%emt 0:05:38]} Nc5 {[%emt 0:03:26]} 21. Nd4 {[%emt 0:09:27]} Nce4 {[%emt 0:01:35]} 22. Kg2 {[%emt 0:02:41]} h5 {[%emt 0:01:26]} 23. Bb2 {[%emt 0:01:06]} Qd7 {[%emt 0:01:37]} 24. Ne2 {[%emt 0:08:53]} Rad8 {[%emt 0:01:59]} 25. Nf4 {[%emt 0:01:06]} Nc5 {[%emt 0:03:38]} 26. Qc3 {[%emt 0:01:45]} Nce4 {[%emt 0:02:57]} 27. Qd4 {[%emt 0:03:04]} Nxf2 {[%emt 0:01:06]} 28. Kxf2 {[%emt 0:06:03]} Ne4+ {[%emt 0:00:32]} 29. Bxe4 {[%emt 0:00:07]} Bxd4 {[%emt 0:00:05]} 30. exd4 {[%emt 0:00:08]} c6 {[%emt 0:01:18]} 31. d5 {[%emt 0:01:28]} c5 {[%emt 0:00:17]} 32. Rd2 {[%emt 0:01:00]} Re5 {[%emt 0:03:11]} 33. Rde2 {[%emt 0:04:25]} Rde8 {[%emt 0:00:54]} 34. Bxe5 {[%emt 0:03:57]} dxe5 {[%emt 0:00:06]} 35. Bg2 {[%emt 0:01:15]} Qd6 {[%emt 0:00:39]} 36. Nd3 {[%emt 0:00:45]} f6 {[%emt 0:00:22]} 37. Nf4 {[%emt 0:01:24]} Kg7 {[%emt 0:00:24]} 38. Ne6+ {[%emt 0:00:12]} Kh6 {[%emt 0:01:55]} 39. Bh3 {[%emt 0:00:34]} Ra8 {[%emt 0:01:29]} 40. Kg2 {[%emt 0:00:41]} Ra7 {[%emt 0:00:34]} 41. Rf1 {[%emt 0:00:45]} Rf7 {[%emt 0:00:48]} 42. Ng5 {[%emt 0:03:39]} Rf8 {[%emt 0:00:03]} 43. Ne4 {[%emt 0:01:29]} Qd8 {[%emt 0:00:02]} 44. Be6 {[%emt 0:02:18]} Kg7 {[%emt 0:01:24]} 45. Ref2 {[%emt 0:01:47]} f5 {[%emt 0:00:24]} 46. Ng5 {[%emt 0:00:16]} Qd6 {[%emt 0:01:29]} 47. Ne4 {[%emt 0:02:49]} Qe7 {[%emt 0:00:49]} 48. Bxf5 {[%emt 0:03:56]} gxf5 {[%emt 0:00:10]} 49. Rxf5 {[%emt 0:00:06]} Rxf5 {[%emt 0:00:19]} 50. Rxf5 {[%emt 0:00:06]} Qe8 {[%emt 0:02:59]} 51. Rg5+ {[%emt 0:00:40]} Kh6 {[%emt 0:00:40]} 52. Nf6 {[%emt 0:00:45]} Qf7 {[%emt 0:00:43]} 53. Rxe5 {[%emt 0:00:39]} Kg6 {[%emt 0:01:15]} 54. Ne4 {[%emt 0:00:11]} Kh6 {[%emt 0:01:52]} 55. d6 {[%emt 0:01:18]} Qd7 {[%emt 0:01:00]} 56. Re7 {[%emt 0:02:53]} Qg4 {[%emt 0:00:31]} 57. Kf2 {[%emt 0:01:10]} Qd1 {[%emt 0:00:43]} 58. d7 {[%emt 0:00:19]} Kg6 {[%emt 0:00:30]} 59. Re6+ {[%emt 0:00:23]} Kf5 {[%emt 0:00:50]} 60. Rd6 {[%emt 0:00:12]} Qh1 {[%emt 0:01:16]} 61. d8=Q {[%emt 0:00:17]} Qh2+ {[%emt 0:00:09]} 62. Ke3 {[%emt 0:00:27]} Qg1+ {[%emt 0:00:05]} 63. Nf2 {[%emt 0:00:08]} Qxg3+ {[%emt 0:00:38]} 64. Ke2 {[%emt 0:00:06]} Qe5+ {[%emt 0:00:10]} 65. Kf1 {[%emt 0:00:06]} 1-0

[Event "RUDAR XXII-IM 2024"]
[Site "Pozarevac"]
[Date "2024.02.13"]
[Round "7.5"]
[White "Petrovic, Aleksa"]
[Black "Popchev, Milko"]
[Result "1/2-1/2"]
[ECO "C42"]
[WhiteElo "2248"]
[BlackElo "2193"]
[Annotator "TA"]
[PlyCount "29"]
[EventDate "2024.02.12"]
[EventType "tourn"]
[EventCountry "SRB"]
[SourceTitle "playchess.com"]
[Source "ChessBase"]
[SourceQuality "1"]
[TimeControl "5400+30"]

{[%evp 18,29,20,0,12,0,0,10,8,0,0,-7,6,0]} 1. e4 {[%emt 0:15:06]} e5 {[%emt 0:00:16]} 2. Nf3 {[%emt 0:00:11]} Nf6 {[%emt 0:00:11]} 3. Nxe5 {[%emt 0:00:05]} d6 {[%emt 0:00:13]} 4. Nf3 {[%emt 0:00:04]} Nxe4 {[%emt 0:00:14]} 5. Qe2 {[%emt 0:00:03]} Qe7 {[%emt 0:00:14]} 6. d3 {[%emt 0:00:05]} Nf6 {[%emt 0:00:11]} 7. Nc3 {[%emt 0:00:04]} c6 {[%emt 0:00:14]} 8. Bg5 {[%emt 0:00:16]} Qxe2+ {[%emt 0:00:11]} 9. Bxe2 {[%emt 0:00:04]} Be7 {[%emt 0:00:10]} 10. O-O {[%emt 0:00:05] The position is equal.} d5 {[%emt 0:00:09]} 11. h3 {[%emt 0:00:05]} O-O {[%emt 0:00:09]} 12. Rfe1 {[%emt 0:00:03]} Na6 {[%emt 0:00:23]} 13. a3 {[%emt 0:00:06]} Nc5 {[%emt 0:00:19]} 14. Nd4 {[%emt 0:00:11][%cal Oe2g4]} Bd8 {[%emt 0:00:20]} 15. Bf1 {[%emt 0:00:05] Not much happened in this game.   Weighted Error Value: White=0.09 (flawless) /Black=0.03 (flawless) .  OK:         	White=1     	---} 1/2-1/2

[Event "RUDAR XXII-IM 2024"]
[Site "Pozarevac"]
[Date "2024.02.14"]
[Round "8.1"]
[White "Ilincic, Zlatko"]
[Black "Popchev, Milko"]
[Result "1/2-1/2"]
[ECO "D14"]
[WhiteElo "2291"]
[BlackElo "2193"]
[Annotator "TA"]
[PlyCount "22"]
[EventDate "2024.02.12"]
[EventType "tourn"]
[EventCountry "SRB"]
[SourceTitle "playchess.com"]
[Source "ChessBase"]
[SourceQuality "1"]
[TimeControl "5400+30"]

{[%evp 17,22,-10,0,0,0,0,6]} 1. d4 {[%emt 0:00:25]} d5 {[%emt 0:00:21]} 2. c4 {[%emt 0:00:07]} c6 {[%emt 0:00:08]} 3. cxd5 {[%emt 0:00:08]} cxd5 {[%emt 0:00:11]} 4. Nf3 {[%emt 0:00:05]} Nc6 {[%emt 0:00:11]} 5. Bf4 {[%emt 0:00:06]} Nf6 {[%emt 0:00:14]} 6. e3 {[%emt 0:00:06]} Bf5 {[%emt 0:00:15]} 7. Bd3 {[%emt 0:00:07]} Bxd3 {[%emt 0:00:13]} 8. Qxd3 {[%emt 0:00:05]} e6 {[%emt 0:00:13]} 9. O-O {[%emt 0:00:08]} Be7 {[%emt 0:00:10] The position is equal.} 10. Nc3 {[%emt 0:00:08]} O-O {[%emt 0:00:15]} 11. Rac1 {[%emt 0:00:04]} Rc8 {[%emt 0:00:10] An uneventful encounter.   Weighted Error Value: White=0.00 (flawless) /Black=0.05 (flawless) .  OK:         	White=1     	Black=1} 1/2-1/2

[Event "RUDAR XXII-IM 2024"]
[Site "Pozarevac"]
[Date "2024.02.14"]
[Round "8.2"]
[White "Karamsetty, Jeevan"]
[Black "Petrovic, Aleksa"]
[Result "1-0"]
[ECO "C26"]
[WhiteElo "2211"]
[BlackElo "2248"]
[Annotator "RC"]
[PlyCount "77"]
[EventDate "2024.02.12"]
[EventType "tourn"]
[EventCountry "SRB"]
[SourceTitle "playchess.com"]
[Source "ChessBase"]
[SourceQuality "1"]
[TimeControl "5400+30"]

1. e4 {[%emt 0:00:03]} e5 {[%emt 0:23:18]} 2. Nc3 {[%emt 0:00:07]} Nf6 {[%emt 0:01:52]} 3. g3 {[%emt 0:00:11]} Bb4 {[%emt 0:03:24]} 4. Bg2 {[%emt 0:00:16]} O-O {[%emt 0:05:33]} 5. Nge2 {[%emt 0:01:59]} Re8 {[%emt 0:01:03]} 6. O-O {[%emt 0:00:40]} d6 {[%emt 0:02:32]} 7. d3 {[%emt 0:08:13]} Nc6 {[%emt 0:05:23]} 8. Bg5 {[%emt 0:05:59]} h6 {[%emt 0:01:14]} 9. Bxf6 {[%emt 0:01:45]} Qxf6 {[%emt 0:00:06]} 10. Nd5 {[%emt 0:02:24]} Qd8 {[%emt 0:00:15]} 11. c3 {[%emt 0:03:31]} Bc5 {[%emt 0:01:01]} 12. b4 {[%emt 0:00:28]} Bb6 {[%emt 0:01:30]} 13. a4 {[%emt 0:00:43]} a5 {[%emt 0:00:32]} 14. b5 {[%emt 0:01:18]} Ne7 {[%emt 0:00:34]} 15. Nxb6 {[%emt 0:00:14]} cxb6 {[%emt 0:00:07]} 16. Qb3 {[%emt 0:11:43]} Qc7 {[%emt 0:04:22]} 17. f4 {[%emt 0:05:13]} Be6 {[%emt 0:03:30]} 18. c4 {[%emt 0:01:12]} f5 {[%emt 0:03:29]} 19. Nc3 {[%emt 0:05:58]} exf4 {[%emt 0:07:38]} 20. Rxf4 {[%emt 0:07:14]} Ng6 {[%emt 0:04:44]} 21. Rff1 {[%emt 0:07:38]} Rf8 {[%emt 0:02:30]} 22. exf5 {[%emt 0:04:23]} Bxf5 {[%emt 0:02:31]} 23. Kh1 {[%emt 0:03:27]} Be6 {[%emt 0:03:43]} 24. Rxf8+ {[%emt 0:03:03]} Rxf8 {[%emt 0:00:28]} 25. Re1 {[%emt 0:00:28]} Ne5 {[%emt 0:01:43]} 26. Ne4 {[%emt 0:02:42]} Kh8 {[%emt 0:01:43]} 27. Qa3 {[%emt 0:02:08]} Rd8 {[%emt 0:01:29]} 28. Nxd6 {[%emt 0:02:45]} Rxd6 {[%emt 0:03:30]} 29. Rxe5 {[%emt 0:00:14]} Bf7 {[%emt 0:00:20]} 30. Re1 {[%emt 0:03:15]} Qd8 {[%emt 0:02:13]} 31. Be4 {[%emt 0:00:35]} Bg6 {[%emt 0:01:48]} 32. Bxg6 {[%emt 0:01:51]} Rxg6 {[%emt 0:00:02]} 33. Rf1 {[%emt 0:01:08]} Kh7 {[%emt 0:00:59]} 34. Qc3 {[%emt 0:03:07]} Qd7 {[%emt 0:00:21]} 35. d4 {[%emt 0:00:49]} h5 {[%emt 0:00:25]} 36. Qd3 {[%emt 0:00:41]} Qh3 {[%emt 0:01:22]} 37. Qf5 {[%emt 0:03:47]} Qg4 {[%emt 0:00:34]} 38. Qxg4 {[%emt 0:00:06]} Rxg4 {[%emt 0:00:07]} 39. Rf4 {[%emt 0:00:36]} 1-0